bitfinex/quotes_ETHUSD_20240729
["timestamp","ask_amount","ask_price","bid_price","bid_amount"]
[1722260229198,0.04274998,3367.4,3366.2,0.05939554]
[1722260229521,2.96949,3367.6,3366.3,0.55]
[1722260229729,2.96957,3367.5,3366.3,0.55]
[1722260230036,2.96966,3367.4,3366.1,0.55]
[1722260230238,2.96965,3367.4,3366.1,0.55]
[1722260230465,2.96973,3367.3,3366.1,0.55]
[1722260230624,0.04284375,3367.3,3366.1,0.55]
[1722260231336,2.96997,3367.1,3366.0,2.2723]
[1722260231535,0.64392732,3367.0,3366.1,0.05940602]
[1722260231858,3.01264595,3367.0,3366.0,2.2723]
[1722260232034,2.97023,3366.8,3366.0,2.2723]
[1722260232368,3.04246632,3366.7,3366.0,2.2723]
[1722260232667,3.04246632,3366.7,3365.4,9.7228]
[1722260232668,2.97094,3366.0,3365.4,9.7228]
[1722260232855,3.0,3366.4,3365.4,2.4828]
[1722260233026,0.04150116,3365.9,3365.4,2.4828]
[1722260233367,0.04226396,3365.8,3365.4,2.4828]
[1722260233573,3.0,3366.3,3365.4,2.4828]
[1722260233746,0.04243113,3366.2,3365.5,0.0594228]
[1722260234074,2.97029,3366.7,3365.4,2.4828]
[1722260234075,2.97037,3366.6,3365.4,2.4828]
[1722260234222,0.04240675,3366.1,3365.4,2.4828]
[1722260234423,3.0,3366.3,3365.4,2.4828]
[1722260234667,0.04239482,3366.2,3365.4,2.4828]
[1722260234964,2.97082,3366.1,3365.4,2.4828]
[1722260235152,0.59838548,3366.0,3365.4,2.4828]
[1722260235353,0.04238748,3366.0,3365.4,2.4828]
[1722260236578,2.97085,3366.1,3365.4,2.4828]
[1722260236743,0.04239475,3366.0,3365.4,2.4828]
[1722260236943,0.94078323,3366.0,3365.4,2.4828]
[1722260237881,0.94078323,3366.0,3364.7,7.24]
[1722260237882,2.97106,3365.8,3364.8,2.3546]
[1722260238078,3.01329475,3366.0,3364.8,2.3546]
[1722260238079,2.97116,3365.7,3364.8,2.3546]
[1722260238292,2.97124,3365.6,3364.8,2.3546]
[1722260238431,0.04205234,3365.7,3364.8,2.3546]
[1722260238432,3.27273923,3365.5,3364.8,2.3546]
[1722260238631,3.01323722,3365.5,3364.8,2.3546]
[1722260239062,2.97142,3365.4,3364.8,2.3546]
[1722260239247,5.9715,3365.3,3364.2,2.4968]
[1722260239456,3.04139143,3365.3,3364.2,2.4968]
[1722260239737,0.89842114,3365.2,3364.2,2.4968]
[1722260240079,0.04121917,3365.1,3364.2,2.4968]
[1722260240873,0.04121917,3365.1,3364.3,0.05943885]
[1722260241169,2.97125,3365.6,3364.4,0.05943873]
[1722260241472,3.04137779,3365.5,3364.4,0.05943873]
[1722260241633,3.01271779,3365.5,3364.4,0.05943873]
[1722260241831,3.0,3365.4,3364.4,0.05943873]
[1722260242174,0.04116586,3365.3,3364.4,0.05943873]
[1722260242476,2.97141,3365.4,3364.4,0.05943873]
[1722260242635,0.04110591,3365.2,3364.4,0.05943873]
[1722260242834,0.04110591,3365.2,3364.2,2.4968]
[1722260243035,3.0,3365.5,3364.2,2.4968]
[1722260243336,2.97166,3365.2,3364.2,2.4968]
[1722260243537,1.0706226,3365.4,3364.2,2.4968]
[1722260243538,3.0,3365.1,3364.2,2.4968]
[1722260243846,0.0397343,3365.0,3364.3,0.05944052]
[1722260244374,3.0,3365.5,3364.3,0.05944052]
[1722260244561,0.03966816,3364.9,3364.2,2.4968]
[1722260244760,3.0,3365.4,3364.3,0.85911491]
[1722260244961,3.27134,3365.5,3364.3,0.85911491]
[1722260245151,0.04023662,3365.3,3364.4,0.33559149]
[1722260245333,0.04017669,3365.2,3364.4,0.33559149]
[1722260245552,0.04017669,3365.2,3364.5,0.05943492]
[1722260245753,5.9713,3365.6,3364.5,0.05943492]
[1722260245982,3.3,3365.6,3364.5,0.40361756]
[1722260246183,0.3,3365.6,3364.5,0.40361756]
[1722260246384,0.04022483,3365.5,3364.5,0.40361756]
[1722260246766,3.04022483,3365.5,3364.5,0.40361756]
[1722260246965,0.04022483,3365.5,3364.6,0.55]
[1722260247194,3.0,3365.7,3364.6,0.55]
[1722260247387,2.97134,3365.5,3364.2,2.4968]
[1722260247695,3.04009589,3365.4,3364.3,0.05943619]
[1722260247992,3.04009589,3365.4,3364.2,2.4968]
[1722260247993,0.04009589,3365.4,3364.2,2.4968]
[1722260248192,2.97166,3365.2,3364.3,0.79968]
[1722260248357,0.03985806,3365.1,3364.3,0.79968]
[1722260248761,0.03985806,3365.1,3364.2,2.4968]
[1722260248762,6.01153806,3365.1,3364.2,2.4968]
[1722260248989,3.03985806,3365.1,3364.2,2.4968]
[1722260249169,0.03985806,3365.1,3364.2,2.4968]
[1722260249371,3.03985806,3365.1,3364.2,2.4968]
[1722260250059,0.03985806,3365.1,3364.2,2.4968]
[1722260250691,0.03985806,3365.1,3364.2,2.74648]
[1722260250994,2.97186,3364.9,3364.2,2.4968]
[1722260251196,3.01158851,3364.8,3364.2,2.4968]
[1722260251524,2.97223,3364.5,3363.7,2.2893]
[1722260251803,0.43928871,3364.4,3363.7,2.2893]
[1722260251974,0.43928871,3364.4,3363.2,2.2893]
[1722260251975,2.97258,3364.1,3363.2,2.2893]
[1722260252157,2.9727,3364.0,3363.2,2.2893]
[1722260252360,2.97279,3363.9,3363.2,2.2893]
[1722260252589,0.03884239,3364.0,3363.2,2.2893]
[1722260252590,2.97297,3363.7,3363.2,2.2893]
[1722260252797,3.0,3363.6,3363.2,2.2893]
[1722260253003,3.03853548,3363.6,3363.1,0.05946807]
[1722260253157,0.03853548,3363.6,3362.8,2.2857]
[1722260253495,3.0,3364.5,3362.9,0.59135051]
[1722260253718,5.97211,3364.7,3363.0,2.4001]
[1722260253923,0.0390703,3364.4,3363.1,0.05945133]
[1722260254066,5.97222,3364.5,3363.2,0.55]
[1722260254268,0.03627599,3364.3,3363.3,0.30095513]
[1722260254570,2.97245,3364.3,3363.3,0.30095513]
[1722260254792,3.03620715,3364.2,3363.3,0.30095513]
[1722260255304,3.03620715,3364.2,3363.4,0.05945683]
[1722260255523,0.03620715,3364.2,3363.4,0.05945683]
[1722260255850,3.0,3364.5,3363.4,0.05945683]
[1722260256150,0.0350683,3364.4,3363.4,0.05945683]
[1722260256992,3.0350683,3364.4,3363.4,0.05945683]
[1722260257331,3.0,3364.3,3363.3,0.30095513]
[1722260257626,0.03355778,3364.2,3363.4,0.55]
[1722260258009,3.0,3364.4,3363.5,0.0594508]
[1722260258206,0.03370468,3364.3,3363.5,0.0594508]
[1722260258404,5.97213,3364.6,3363.5,0.0594508]
[1722260258405,6.269334,3364.6,3363.5,0.0594508]
[1722260258609,3.00604464,3364.5,3363.4,0.55]
[1722260258805,3.0,3364.4,3363.4,0.55]
[1722260259032,0.03370468,3364.3,3363.4,0.55]
[1722260259410,0.03370468,3364.3,3363.5,0.05945081]
[1722260259611,0.03370468,3364.3,3363.4,0.55]
[1722260259821,2.97244,3364.3,3363.4,0.55]
[1722260260025,3.03363932,3364.2,3363.4,0.55]
[1722260260519,0.03363932,3364.2,3363.4,0.55]
[1722260261020,0.03363932,3364.2,3363.5,0.05945083]
[1722260261243,0.03363932,3364.2,3363.7,2.3692]
[1722260261396,2.97181,3365.0,3363.8,0.30231061]
[1722260261600,5.54724221,3364.9,3363.8,0.30231061]
[1722260261853,0.03277008,3364.9,3363.8,0.30231061]
[1722260262014,2.97186,3364.9,3363.8,0.30231061]
[1722260262198,0.03171012,3364.8,3363.9,0.32659655]
[1722260262514,2.97199,3364.8,3363.7,2.3692]
[1722260262716,2.97226,3364.5,3363.7,2.3692]
[1722260262922,2.57464832,3364.7,3363.7,2.3692]
[1722260262923,2.97209,3364.7,3363.7,2.3692]
[1722260263122,0.03165893,3364.4,3363.8,0.29636886]
[1722260263431,3.0,3365.1,3363.9,0.05944881]
[1722260263432,0.03167153,3364.3,3363.9,0.05944881]
[1722260263761,3.0,3364.9,3364.0,0.55]
[1722260263939,0.03161155,3364.2,3363.7,2.3692]
[1722260264154,2.97186,3364.9,3363.7,2.3692]
[1722260264442,2.9723,3364.4,3363.7,2.3692]
[1722260264647,6.00405153,3364.3,3363.7,2.3692]
[1722260264944,2.97266,3364.0,3363.7,2.3692]
[1722260265114,2.97306,3363.6,3363.1,7.24]
[1722260265311,2.97289,3363.8,3363.0,2.345]
[1722260265517,2.97289,3363.8,3363.0,2.5795]
[1722260265518,0.03093031,3363.5,3363.0,2.5795]
[1722260265702,2.97318,3363.4,3362.5,2.345]
[1722260265905,0.03081379,3363.4,3362.5,2.345]
[1722260266210,0.03081379,3363.4,3362.6,0.959]
[1722260266514,1.02985677,3363.3,3362.6,0.959]
[1722260266702,1.02985677,3363.3,3362.6,1.01847065]
[1722260266703,0.03076473,3363.3,3362.6,1.01847065]
[1722260267011,5.97291,3363.7,3362.7,1.06034707]
[1722260267214,1.06069515,3363.6,3362.7,1.06034707]
[1722260267406,2.9731,3363.5,3362.7,1.06034707]
[1722260267603,1.06064438,3363.4,3362.7,1.06034707]
[1722260267828,0.03081022,3363.4,3362.7,1.06034707]
[1722260268216,0.03081022,3363.4,3362.8,0.34648171]
[1722260268418,0.03081022,3363.4,3362.8,0.40595021]
[1722260268620,3.0,3364.2,3362.8,0.40595021]
[1722260268941,3.0,3364.2,3362.8,0.34648171]
[1722260268942,4.03348539,3364.1,3362.8,0.34648171]
[1722260269253,2.9728,3363.9,3362.8,0.34648171]
[1722260269541,2.9728,3363.9,3362.7,1.06034707]
[1722260269542,2.973,3363.6,3362.7,1.06034707]
[1722260269742,1.02968112,3363.5,3362.7,1.06034707]
[1722260269903,1.02968112,3363.5,3362.8,0.34053471]
[1722260269904,0.03072261,3363.5,3362.8,0.34053471]
[1722260270109,1.02987095,3363.4,3362.8,0.34053471]
[1722260270345,2.97309,3363.5,3362.8,0.34053471]
[1722260270567,0.0305193,3363.3,3362.5,2.345]
[1722260270769,4.00302443,3363.4,3362.5,2.345]
[1722260270770,0.03057931,3363.4,3362.6,0.05947184]
[1722260271006,0.03045121,3363.2,3362.6,0.05947184]
[1722260271138,0.03061291,3363.3,3362.7,1.26185018]
[1722260271339,3.0,3364.0,3362.7,1.26185018]
[1722260271686,1.06070641,3363.9,3362.7,1.26185018]
[1722260271894,1.02972649,3363.8,3362.8,0.60946066]
[1722260272037,0.03097992,3363.9,3363.0,2.3473]
[1722260272237,2.97221,3364.5,3363.1,0.55]
[1722260272482,1.06094357,3364.4,3363.2,0.05945463]
[1722260272699,1.02966239,3364.3,3363.1,0.55]
[1722260272862,1.02966239,3364.2,3363.3,0.05945463]
[1722260273059,1.02966239,3364.1,3363.4,0.60945464]
[1722260273291,0.03104125,3364.0,3363.4,0.55]
[1722260273601,0.03104125,3364.0,3363.0,2.3473]
[1722260273767,3.0,3364.2,3363.1,0.25344311]
[1722260274089,2.97266,3364.0,3363.1,0.25344311]
[1722260274309,1.0606443,3364.1,3363.1,0.25344311]
[1722260274586,0.03087365,3363.9,3363.2,0.05945924]
[1722260274786,3.03093365,3364.0,3363.2,0.05945924]
[1722260275088,0.03087365,3363.9,3363.2,0.32547948]
[1722260275269,0.03087365,3363.9,3363.3,0.05945555]
[1722260275472,1.02965065,3364.1,3363.3,0.05945555]
[1722260275718,0.03081365,3363.8,3363.3,0.05945555]
[1722260275888,1.02965065,3364.1,3363.3,0.05945555]
[1722260276090,0.0308408,3363.7,3363.3,0.05945555]
[1722260276332,3.0,3364.4,3363.4,2.289]
[1722260276535,3.0,3364.6,3363.5,0.86495065]
[1722260276691,0.03115393,3364.3,3363.5,0.80550202]
[1722260277029,0.03131823,3364.5,3363.5,0.80550202]
[1722260277197,0.0312292,3364.4,3363.6,0.3094502]
[1722260277534,2.9719,3364.9,3363.7,0.05944864]
[1722260277835,2.97226,3364.5,3363.6,0.3094502]
[1722260278030,2.97226,3364.5,3363.5,0.55]
[1722260278245,0.83554844,3364.4,3363.5,0.5]
[1722260278406,0.03126413,3364.4,3363.5,0.5]
[1722260278724,2.97203,3364.7,3363.5,0.5]
[1722260278924,0.03120414,3364.3,3363.5,0.5]
[1722260279125,3.0,3364.7,3363.6,0.2789]
[1722260279329,2.97192,3364.9,3363.6,0.2789]
[1722260279330,0.03132111,3364.2,3363.6,0.2789]
[1722260279526,3.0,3364.8,3363.6,0.2789]
[1722260279725,0.8041681,3364.7,3363.6,0.2789]
[1722260279927,0.8041681,3364.7,3363.7,0.66354345]
[1722260279928,0.83591189,3364.7,3363.7,0.66354345]
[1722260280128,0.03173713,3364.7,3363.8,0.60944143]
[1722260280346,0.03173713,3364.7,3363.9,2.2688]
[1722260280546,2.97128,3365.6,3364.0,0.95767058]
[1722260280859,2.97159,3365.2,3364.0,0.95767058]
[1722260281042,2.97159,3365.2,3363.9,2.2688]
[1722260281043,2.97209,3364.7,3363.9,2.2688]
[1722260281243,0.83544014,3364.6,3363.9,2.2688]
[1722260281443,0.80452895,3364.5,3364.0,0.05944378]
[1722260281645,0.03079127,3364.4,3364.0,0.05944378]
[1722260281945,2.97161,3365.2,3364.1,0.23282438]
[1722260282155,0.03071649,3364.3,3364.2,0.05944146]
[1722260282331,3.0,3365.1,3364.2,0.05944146]
[1722260282644,3.0,3365.1,3364.1,0.23282438]
[1722260282645,0.80505738,3365.0,3364.1,0.23282438]
[1722260282836,0.80505738,3364.9,3364.2,0.55]
[1722260283033,0.80505738,3364.9,3364.3,0.05943561]
[1722260283211,0.03101628,3364.8,3364.3,0.05943561]
[1722260283861,3.0,3365.3,3364.3,0.05943561]
[1722260284156,0.83498124,3365.2,3364.3,0.05943561]
[1722260284315,0.8048493,3365.1,3364.3,0.05943561]
[1722260284517,0.83492131,3365.1,3364.3,0.05943561]
[1722260284712,0.8048493,3365.0,3364.4,0.55]
[1722260284950,0.03004715,3365.0,3364.5,0.05943392]
[1722260285139,3.0,3365.7,3364.5,0.05943392]
[1722260285324,1.40214052,3365.6,3364.5,0.05943392]
[1722260285532,0.80503352,3365.5,3364.5,0.05943392]
[1722260285836,0.03030706,3365.4,3364.5,0.05943321]
[1722260286039,0.80503352,3365.3,3364.6,2.4315]
[1722260286225,0.80503352,3365.3,3364.7,0.05943073]
[1722260286412,0.0301872,3365.2,3364.7,0.05943073]
[1722260286612,0.80503352,3365.1,3364.6,2.4315]
[1722260286815,0.03006732,3365.0,3364.6,2.4315]
[1722260287316,0.03006732,3365.0,3364.7,0.05943357]
[1722260287525,3.597107,3365.6,3364.6,2.4315]
[1722260287725,0.03000738,3364.9,3364.6,2.4315]
[1722260288059,3.0,3365.5,3364.6,2.4315]
[1722260288260,0.80505901,3365.4,3364.7,0.05943074]
[1722260288469,0.83536607,3365.4,3364.7,0.05943074]
[1722260288776,0.80505901,3365.3,3364.7,0.05943074]
[1722260288914,0.83412347,3365.3,3364.7,0.05943074]
[1722260289252,0.02906446,3365.3,3364.7,0.30852381]
[1722260289571,0.02906446,3365.3,3364.8,0.05942829]
[1722260289715,3.0,3366.0,3364.9,0.05942828]
[1722260289921,0.02900453,3365.2,3365.0,0.55]
[1722260290163,5.5704,3366.6,3365.1,0.05942148]
[1722260290377,9.93006775,3367.1,3365.2,2.3914]
[1722260290378,1.7747847,3366.5,3365.2,2.3914]
[1722260290577,0.80517654,3366.4,3365.3,0.60941792]
[1722260291162,0.02966359,3366.3,3365.2,2.3914]
[1722260291369,2.97121,3365.7,3364.4,2.4753]
[1722260291567,0.80557086,3365.6,3364.4,3.47011244]
[1722260291732,0.80557086,3365.5,3364.4,2.4753]
[1722260291937,0.83473287,3365.5,3364.4,2.4753]
[1722260292148,2.97088,3366.0,3364.4,2.4753]
[1722260292362,4.40000341,3365.9,3364.5,0.804763]
[1722260292585,0.80584241,3365.8,3364.6,0.05942474]
[1722260292720,0.80584241,3365.8,3364.7,0.55]
[1722260292926,0.02926837,3365.7,3364.8,0.05942479]
[1722260293165,0.80571777,3365.6,3364.9,0.55]
[1722260293372,3.80603306,3365.6,3364.4,2.4753]
[1722260293672,0.80571777,3365.5,3364.5,0.55]
[1722260294169,0.02886821,3365.4,3364.5,0.55]
[1722260294400,0.80571777,3365.3,3364.4,2.4753]
[1722260294688,0.02855017,3365.2,3364.4,2.4753]
[1722260294832,3.77744777,3365.1,3364.4,2.4753]
[1722260295029,6.77748777,3365.0,3364.4,2.4753]
[1722260295229,0.80571777,3364.9,3364.4,2.4753]
[1722260295628,0.02821448,3364.8,3364.4,2.4753]
[1722260295994,0.80473409,3364.7,3363.8,9.5225]
[1722260296271,0.02723268,3364.6,3363.8,7.24]
[1722260296661,3.02723268,3364.6,3363.9,0.05944891]
[1722260296831,0.02723268,3364.6,3363.8,9.176]
[1722260297029,2.97205,3364.7,3363.8,9.176]
[1722260297233,3.02726971,3364.6,3363.8,7.24]
[1722260297431,2.97222,3364.5,3363.8,7.24]
[1722260297637,0.02720779,3364.4,3363.8,7.24]
[1722260298028,5.97213,3364.6,3363.8,7.24]
[1722260298240,0.02728844,3364.5,3363.8,7.24]
[1722260298482,0.02728844,3364.5,3363.9,0.05944912]
[1722260298845,3.0,3364.8,3363.8,7.24]
[1722260299036,2.99929325,3364.7,3363.8,7.24]
[1722260299234,2.97222,3364.5,3363.8,7.24]
[1722260299434,0.02717853,3364.4,3363.8,7.24]
[1722260299668,5.97218,3364.6,3363.8,7.24]
[1722260299894,1.0567078,3364.5,3363.8,7.24]
[1722260300036,0.02718042,3364.5,3363.8,7.24]
[1722260300532,4.00181752,3364.4,3363.8,7.24]
[1722260300746,0.62711646,3364.5,3363.8,7.24]
[1722260300747,4.00190752,3364.3,3363.8,7.24]
[1722260300950,1.02951752,3364.2,3363.3,5.2525]
[1722260301384,0.02692587,3364.1,3363.3,5.2525]
[1722260301600,0.02692587,3364.1,3363.4,0.60945268]
[1722260301900,2.97191,3364.9,3363.5,1.90484527]
[1722260302200,4.00142255,3364.8,3363.5,1.90484527]
[1722260302351,1.02943255,3364.7,3363.5,1.90484527]
[1722260302551,0.02737491,3364.8,3363.6,1.38018298]
[1722260302894,1.05659337,3364.7,3363.7,0.0594458]
[1722260303098,0.02719869,3364.7,3363.7,0.0594458]
[1722260303690,1.05647247,3364.6,3363.7,0.0594458]
[1722260303893,0.02706605,3364.6,3363.7,0.0594458]
[1722260304053,0.02706605,3364.6,3363.8,2.4079]
[1722260304254,5.97183,3365.0,3363.9,0.05944537]
[1722260304458,1.05641502,3364.9,3364.0,0.24673454]
[1722260304796,1.02935214,3364.8,3364.0,0.24673454]
[1722260304999,0.02706288,3364.9,3363.8,2.4079]
[1722260305000,1.02935214,3364.7,3363.8,2.4079]
[1722260305203,2.97248,3364.2,3363.3,5.4116]
[1722260305404,7.46955214,3364.6,3363.3,2.4416]
[1722260305727,3.0,3364.1,3362.7,9.6889]
[1722260305903,2.9723,3364.4,3362.8,0.05946228]
[1722260306105,1.05815107,3364.0,3362.8,0.05946228]
[1722260306304,1.02973213,3363.9,3362.8,0.05946228]
[1722260306464,0.02835463,3363.9,3362.9,1.27221023]
[1722260306799,5.97239,3364.3,3363.0,0.05945664]
[1722260306800,3.0,3364.3,3363.0,0.05945664]
[1722260307010,0.02824357,3363.8,3363.1,0.55]
[1722260307208,5.31290558,3365.1,3363.1,0.55]
[1722260307209,5.97199,3364.8,3363.3,2.4489]
[1722260307411,0.02849079,3363.7,3363.4,0.55]
[1722260307571,2.97234,3364.4,3363.4,0.55]
[1722260307776,1.02957346,3364.3,3363.5,0.31870667]
[1722260308010,1.02957346,3364.2,3363.5,0.31870667]
[1722260308309,0.02868575,3364.1,3363.5,0.31870667]
[1722260308519,0.02868575,3364.1,3363.6,0.05945049]
[1722260308727,0.02868575,3364.1,3363.6,0.60945049]
[1722260309022,2.97162,3365.2,3363.7,2.384]
[1722260309183,4.00105415,3365.1,3363.8,0.35878563]
[1722260309513,2.97186,3364.9,3363.9,0.55]
[1722260309825,1.02936415,3364.8,3363.9,0.55]
[1722260310110,1.05656103,3364.8,3363.9,0.55]
[1722260310322,1.02936415,3364.7,3363.7,2.384]
[1722260310698,0.02889392,3364.6,3363.8,0.05944655]
[1722260310868,0.02889392,3364.6,3363.9,0.79434466]
[1722260311068,3.0,3365.0,3364.0,0.05944136]
[1722260311313,1.05847031,3364.9,3364.0,0.05944136]
[1722260311610,1.02932775,3364.8,3364.0,0.05944136]
[1722260311914,0.02741386,3364.7,3364.0,0.05944136]
[1722260312121,0.02741386,3364.7,3364.1,0.55]
[1722260312321,0.02741386,3364.7,3364.3,2.4377]
[1722260312495,2.97141,3365.4,3364.3,2.4377]
[1722260312699,0.02751334,3365.3,3364.4,0.05943563]
[1722260312897,1.02933305,3365.5,3364.4,0.05943563]
[1722260313091,1.05683274,3365.4,3364.4,0.40791385]
[1722260313414,1.02933305,3365.3,3364.4,0.40791385]
[1722260313594,0.02749969,3365.4,3364.4,0.40791385]
[1722260313595,1.02933305,3365.2,3364.4,0.40791385]
[1722260313798,1.02933305,3365.1,3364.5,0.32832604]
[1722260314016,0.02771853,3365.2,3364.6,0.05943362]
[1722260314221,0.02759859,3365.0,3364.6,0.05943362]
[1722260314385,0.02769365,3365.1,3364.3,2.4377]
[1722260314593,0.0275737,3364.9,3364.3,2.4377]
[1722260314817,0.02790213,3365.0,3364.3,2.4377]
[1722260315123,0.02783507,3364.9,3364.3,2.4377]
[1722260315334,0.02783507,3364.9,3364.4,0.29877]
[1722260315502,2.97168,3365.1,3364.4,0.29877]
[1722260315697,1.05710261,3365.0,3364.4,0.29877]
[1722260315928,1.02933462,3364.9,3364.3,2.4377]
[1722260316275,1.05657325,3364.8,3363.8,7.24]
[1722260316474,1.05657325,3364.8,3363.7,2.3664]
[1722260316475,2.97226,3364.5,3363.7,2.3664]
[1722260316760,1.05662581,3364.4,3363.7,2.3664]
[1722260316947,1.05662581,3364.4,3363.7,2.60304]
[1722260316948,0.02725039,3364.4,3363.7,2.60304]
[1722260317273,4.00200233,3364.3,3363.1,2.4811]
[1722260317422,1.02955233,3364.2,3363.1,2.4811]
[1722260317623,7.02918217,3364.2,3363.1,2.4811]
[1722260317823,1.02955233,3364.1,3363.2,0.97211]
[1722260318024,0.02896836,3364.0,3363.2,0.97211]
[1722260318250,1.02955233,3363.9,3363.2,0.97211]
[1722260318563,0.02694617,3363.8,3363.3,0.05945725]
[1722260318940,3.0,3364.7,3363.2,0.97211]
[1722260318941,2.97212,3364.6,3363.2,0.97211]
[1722260319137,1.02955507,3364.5,3363.3,0.40476989]
[1722260319346,1.02955507,3364.4,3363.5,2.97309]
[1722260319651,1.84652926,3365.1,3363.4,2.2965]
[1722260319652,3.0,3365.1,3363.6,0.55]
[1722260319831,1.029414,3365.0,3363.4,2.8465]
[1722260320157,1.05956514,3364.9,3363.5,0.641961]
[1722260320359,1.029414,3364.8,3363.6,0.55]
[1722260320522,4.029414,3364.8,3363.6,0.55]
[1722260320725,1.029414,3364.7,3363.7,0.05944291]
[1722260320957,4.001324,3364.9,3363.8,0.60944427]
[1722260321260,7.001424,3364.8,3363.8,0.18014053]
[1722260321464,0.02819656,3364.7,3363.9,0.05944746]
[1722260321622,1.02939865,3364.6,3363.9,0.05944746]
[1722260321821,0.02819656,3364.7,3364.1,2.4333]
[1722260321822,1.02939865,3364.5,3364.1,2.4333]
[1722260322142,3.0,3365.5,3364.2,0.85427475]
[1722260322334,1.02928429,3365.4,3364.3,0.32875748]
[1722260322664,1.02928429,3365.3,3364.4,0.60943376]
[1722260322860,1.02928429,3365.2,3364.4,0.60943376]
[1722260323161,1.14220873,3366.1,3364.5,0.39106612]
[1722260323372,4.81884829,3366.2,3364.7,2.3227]
[1722260323373,1.02909864,3366.0,3364.7,2.3227]
[1722260323585,1.02909864,3366.0,3364.8,0.60942453]
[1722260323586,1.02909864,3365.9,3364.8,0.60942453]
[1722260323749,0.028333,3366.0,3364.8,0.60942453]
[1722260323750,1.02909864,3365.8,3364.8,0.60942453]
[1722260324076,2.97056,3366.4,3364.9,0.59041445]
[1722260324234,1.02893921,3366.3,3365.0,0.60941754]
[1722260324432,1.02893921,3366.2,3365.0,0.60941754]
[1722260324634,1.05743414,3366.1,3365.0,0.60941754]
[1722260324831,1.02894021,3366.0,3365.1,0.4171772]
[1722260325036,0.0267481,3365.9,3365.1,0.4171772]
[1722260325240,0.0267481,3365.9,3365.0,0.55]
[1722260325241,1.02898729,3365.8,3365.0,0.55]
[1722260325563,1.05591203,3365.7,3364.7,2.3227]
[1722260325771,4.00025729,3365.6,3364.7,2.3227]
[1722260325986,2.97196,3364.8,3364.1,2.4285]
[1722260326186,1.53460422,3365.5,3364.1,2.4285]
[1722260326187,1.02898729,3364.7,3364.1,2.4285]
[1722260326496,1.05749902,3364.6,3364.1,2.4285]
[1722260326695,0.02851173,3364.6,3364.1,2.4285]
[1722260326905,1.02944744,3364.5,3364.1,2.4285]
[1722260327126,0.03033162,3364.4,3364.1,2.4285]
[1722260327396,0.03033162,3364.4,3364.2,0.05944504]
[1722260327560,2.9715,3365.3,3364.2,0.05944504]
[1722260327769,4.02926944,3365.2,3364.1,2.67135]
[1722260327968,4.02926944,3365.2,3364.1,2.4285]
[1722260327969,1.02926944,3365.1,3364.1,2.4285]
[1722260328164,2.97196,3364.8,3364.1,2.4285]
[1722260328371,1.02926944,3364.7,3364.1,2.4285]
[1722260328576,4.00129944,3364.7,3364.1,2.4285]
[1722260328784,1.02926944,3364.6,3364.1,2.4285]
[1722260329115,2.97209,3364.7,3364.1,2.4285]
[1722260329326,2.9724,3364.3,3363.7,7.24]
[1722260329470,1.02943427,3364.6,3363.7,7.24]
[1722260329471,2.97236,3364.4,3363.7,7.24]
[1722260329675,1.0295259,3364.3,3363.7,7.24]
[1722260329911,1.0295259,3364.2,3363.7,7.24]
[1722260330115,1.0295259,3364.4,3363.7,7.24]
[1722260330280,1.02954499,3364.3,3363.7,7.24]
[1722260330479,1.02954499,3364.2,3363.7,7.24]
[1722260330795,3.0,3364.8,3363.7,7.24]
[1722260330992,1.02937418,3364.7,3363.7,7.24]
[1722260331216,5.97201,3364.8,3363.7,7.24]
[1722260331217,1.02937418,3364.6,3363.7,7.24]
[1722260331513,1.02940124,3364.5,3363.8,0.96253]
[1722260331687,1.84718703,3365.2,3363.8,0.55]
[1722260332030,2.54565463,3365.9,3364.1,2.25]
[1722260332031,2.9712,3365.7,3364.1,2.25]
[1722260332244,0.03257865,3365.2,3364.1,2.25]
[1722260332384,1.02915695,3365.1,3364.2,0.55]
[1722260332588,1.84718703,3365.8,3364.2,0.55]
[1722260332589,1.02915695,3365.4,3364.3,0.33943301]
[1722260332790,1.02920507,3365.3,3364.4,0.55]
[1722260333095,1.84718703,3366.1,3364.4,0.55]
[1722260333302,2.97124,3365.6,3364.4,0.55]
[1722260333491,1.02922441,3365.5,3364.2,0.55]
[1722260333820,2.97107,3365.8,3364.3,0.05943228]
[1722260334004,1.02919511,3365.7,3364.4,0.55]
[1722260334205,1.42922162,3365.6,3364.5,0.05943051]
[1722260334405,1.02919511,3365.5,3364.6,0.55]
[1722260334605,0.40002651,3365.6,3364.7,0.05943052]
[1722260334606,1.02919511,3365.4,3364.7,0.05943052]
[1722260334811,0.40002651,3365.6,3364.7,0.05943052]
[1722260335119,1.02911892,3365.5,3364.7,0.05943052]
[1722260335291,1.46914646,3365.5,3364.6,0.55]
[1722260335497,1.02911892,3365.4,3364.1,2.25]
[1722260335827,1.02911892,3365.4,3363.6,3.0]
[1722260335828,3.466,3365.2,3363.6,2.2922]
[1722260336127,2.97182,3365.0,3363.6,2.2922]
[1722260336345,2.97203,3364.7,3363.6,2.2922]
[1722260336482,1.02911892,3364.6,3363.6,2.2922]
[1722260336932,1.02945994,3364.5,3363.6,2.2922]
[1722260337086,1.02945994,3364.4,3363.6,2.2922]
[1722260337432,0.61867838,3364.9,3363.7,0.05944897]
[1722260337592,1.02940212,3364.8,3363.7,0.05944897]
[1722260337793,1.02940212,3364.7,3363.6,2.2922]
[1722260338100,1.02940212,3364.6,3363.8,0.05944685]
[1722260338298,3.0,3365.1,3363.9,0.55]
[1722260338500,1.02933776,3365.0,3364.0,0.05944021]
[1722260338831,1.02933776,3364.9,3364.1,0.55]
[1722260339036,4.82032578,3365.6,3364.2,0.05943652]
[1722260339202,1.02925902,3365.5,3364.3,2.9394]
[1722260339401,1.02925902,3365.5,3363.7,3.22922]
[1722260339402,2.972,3364.8,3363.7,7.24]
[1722260339744,2.97226,3364.5,3363.2,2.97]
[1722260340029,4.29848902,3364.7,3363.2,2.97]
[1722260340030,4.00183058,3364.4,3363.2,2.97]
[1722260340186,1.02951058,3364.3,3363.2,2.97]
[1722260340382,2.97231,3364.4,3363.2,2.97]
[1722260340587,4.02951058,3364.3,3363.3,1.25994]